Cogmind - Beta 15 @@@ ROGUE MODE // 2025.08.24 @ 16:02:30 Player: swetpototo Result: Destroyed by G-34 Mercenary with Small Laser Performance ------------- Evolutions (1) 500 Regions Visited (2) 400 Robots Destroyed (15) 75 Value Destroyed (495) 495 Prototype IDs (0) 0 Alien Tech Used (0) 0 Bonus (0) 0 TOTAL SCORE: 1470 Bonus ------- None Cogmind --------- Core Integrity 0/400 Matter 277/300 Energy 100/100 System Corruption 0% Temperature Cool (6) Movement Walking (330) Ox3 Location -9/Materials Parts ------- > --- POWER (1) -------- (None) > --- PROPULSION (4) --- Improved Aluminum Leg > --- UTILITY (2) ------ High-capacity Storage Unit > --- WEAPON (2) ------- Hammer > --- INVENTORY (20) --- Ion Engine Light Ion Engine Heat Sink Heat Sink Compact Matter Pod (0) Sensor Array Signal Interpreter ECM Suite Hacking Suite Hacking Suite Hacking Suite Hacking Suite Mini Grenade Launcher Hammer Hammer Peak State ------------ > --- POWER ------------ Improved Ion Engine > --- PROPULSION ------- Titanium Leg Titanium Leg Titanium Leg Titanium Leg > --- UTILITY ---------- High-capacity Storage Unit Hardened Light Armor Plating > --- WEAPON ----------- Hammer Flail > --- INVENTORY -------- Ion Engine Light Ion Engine Aluminum Leg Aluminum Leg Aluminum Leg Heat Sink Heat Sink Compact Matter Pod Sensor Array Signal Interpreter ECM Suite Hardened Light Armor Plating Hacking Suite Hacking Suite Hacking Suite Hacking Suite Mini Grenade Launcher Hammer Hammer Hammer [Rating: 23] Favorites ----------- Power Ion Engine Engine Ion Engine Power Core Light Nuclear Core Propulsion Aluminum Leg Leg Aluminum Leg Utility Small Storage Unit Device Sensor Array Storage Small Storage Unit Protection Hardened Light Armor Plating Weapon Assault Rifle Energy Gun Medium Laser Ballistic Gun Assault Rifle Ballistic Cannon Improved Light Cannon Impact Weapon Hammer Build | -11 -10 -9 ------- Run | Yrd Mat Mat Slots Evolved 2 | . . 2 Power . | . . . Propulsion 2 | . . 2 Utility . | . . . Weapon . | . . . Parts Attached 24 | . 2 22 Power 4 | . . 4 Engine 3 | . . 3 Core 1 | . . 1 Reactor . | . . . Propulsion 9 | . . 9 Treads . | . . . Leg 9 | . . 9 Wheel . | . . . Hover . | . . . Flight . | . . . Utility 6 | . 1 5 Device 1 | . . 1 Storage 2 | . . 2 Processor . | . . . Hackware . | . . . Protection 3 | . 1 2 Artifact . | . . . Weapon 5 | . 1 4 Energy Gun . | . . . Energy Cannon . | . . . Ballistic Gun 1 | . 1 . Ballistic Cannon 1 | . . 1 Launcher . | . . . Special Weapon . | . . . Impact Weapon 3 | . . 3 Slashing Weapon . | . . . Piercing Weapon . | . . . Special Melee Weapon . | . . . Unidentified Prototypes . | . . . Parts Lost 12 | . . 12 Power 1 | . . 1 Propulsion 7 | . . 7 Utility 3 | . . 3 Weapon 1 | . . 1 Highest Loss Streak 7 | . . 7 To Critical Strikes . | . . . Average Backups 11 | 6 7 11 Power 1 | 1 1 1 Propulsion 1 | 4 3 1 Utility 5 | . 1 5 Weapon 2 | 1 1 2 Tool/Special . | . . . Unused Backups 18 | . . 18 Power 2 | . . 2 Propulsion . | . . . Utility 12 | . . 12 Weapon 4 | . . 4 Tool/Special . | . . . Average Slot Usage (%) 87 | . 97 86 Engine 7 | . 14 6 Core 3 | . . 3 Leg 36 | . 28 37 Storage 11 | . 14 11 Protection 7 | . 11 6 Ballistic Gun 10 | . 21 9 Ballistic Cannon 4 | . . 4 Impact Weapon 5 | . . 6 Peak Build Rating 23 | 6 7 23 Average Rating 11 | 6 6 11 On Entrance 6 | 6 6 7 Naked Turns . | . . . Heaviest Build 56 | 12 15 56 Greatest Support 68 | 20 20 68 Greatest Overweight (x) 4 | . . 4 Average Overweight (x) . | . . . Largest Inventory Capacity 20 | 8 8 20 Average Capacity 12 | 8 8 13 Most Carried 20 | 6 8 20 Average Carried 11 | 6 7 11 Final Capacity 20 | 8 8 20 Final Carried 15 | 6 8 15 Class Distribution -------------------- 100% | Mutant Dominant Class ---------------- Mutant | -10/Materials Mutant | -9/Materials Resources | -11 -10 -9 ----------- Run | Yrd Mat Mat Matter Collected 797 | 215 . 582 Remotely . | . . . Salvage Created 584 | 79 . 505 Parts 27 | 1 . 26 Haulers Intercepted 1 | . . 1 Recyclers Shooed . | . . . Parts Field Recycled . | . . . Retrieved Matter . | . . . Parts Self-Destructed . | . . . Prevented . | . . . Kills | -11 -10 -9 ------- Run | Yrd Mat Mat Combat Hostiles Destroyed 11 | . . 11 Melee 1 | . . 1 Guns 6 | . . 6 Cannons 3 | . . 3 Classes Destroyed 6 | 1 . 5 Hauler 1 | . . 1 Recycler 2 | 1 . 1 Watcher 1 | . . 1 Grunt 5 | . . 5 Duelist 1 | . . 1 Sentry 5 | . . 5 Best Kill Streak 3 | 1 . 3 Combat Bots Only 2 | . . 2 Max Kills in Single Turn 1 | 1 . 1 Gunslinging . | . . . Exploded . | . . . Melee 1 | . . 1 Uniques/NPCs Destroyed . | . . . Combat | -11 -10 -9 -------- Run | Yrd Mat Mat Hostile Shots Fired 201 | . 4 197 Missed 43 | . 2 41 Hits 158 | . 2 156 Melee 15 | . . 15 Projectile 143 | . 2 141 Critical Strikes 7 | . . 7 Damage Taken 2335 | . 22 2313 Core 400 | . . 400 Absorbed by Shields . | . . . Core Remaining (%) 100 | 100 100 . Volleys Fired 80 | 5 1 74 Largest 2 | 2 2 2 Hottest 70 | 70 40 53 Shots Fired 127 | 10 2 115 Gun 88 | 10 2 76 Cannon 39 | . . 39 Launcher . | . . . Special . | . . . Kinetic 122 | 5 2 115 Thermal 5 | 5 . . Explosive . | . . . Electromagnetic . | . . . Robot Hit Streak 10 | 5 . 10 Robot Miss Streak 4 | 4 2 3 Penetration Max . | . . . Secondary Targets 1 | . . 1 Max Gunslinging Chain 1 | . . 1 Shots Hit Robots 94 | 5 . 89 Core Hits 27 | 2 . 25 Critical Kills . | . . . Critical Parts Destroyed 2 | . . 2 Critical Strikes 3 | . . 3 Blast 1 | . . 1 Smash 2 | . . 2 Melee Attacks 22 | . . 22 Impact 22 | . . 22 Slashing . | . . . Piercing . | . . . Sneak Attacks 2 | . . 2 Combat Hostiles . | . . . Follow-up Attacks 2 | . . 2 Damage Inflicted 1526 | 63 5 1458 Guns 544 | 63 . 481 Cannons 583 | . . 583 Explosions . | . . . Melee 390 | . . 390 Ramming 9 | . 5 4 Kinetic 1090 | 26 . 1064 Thermal 37 | 37 . . Explosive . | . . . Electromagnetic . | . . . Impact 390 | . . 390 Slashing . | . . . Piercing . | . . . Highest Corruption . | . . . Average Corruption . | . . . Corruption Purged . | . . . Corruption Blocked . | . . . Overload Shots . | . . . Overflow Damage 95 | . . 95 Projectiles . | . . . Explosions . | . . . Melee 95 | . . 95 Knockbacks 4 | . 1 3 Impact 2 | . 1 1 Kinetic 2 | . . 2 Secondary . | . . . Self-Inflicted Damage . | . . . Shots . | . . . Rammed . | . . . Targets Rammed 2 | . 1 1 Kicked 2 | . 1 1 Crushed . | . . . Highest Temperature 45 | 45 6 40 Average Temperature 12 | 23 4 11 Received Heat Transfer 852 | . 12 840 Siege Activations . | . . . Martial Activations . | . . . Shielding Activations . | . . . Robots Disrupted . | . . . Combat Hostiles . | . . . Robots Corrupted 2 | . . 2 Combat Hostiles 1 | . . 1 Parts Fried 2 | . . 2 Impact Corruptions 5 | . . 5 Robots Melted . | . . . Combat Hostiles . | . . . Parts Melted . | . . . Heat Transferred 111 | 111 . . Parts Sabotaged . | . . . Parts Stolen . | . . . Parts Stripped . | . . . Power Chain Reactions . | . . . Alert | -11 -10 -9 ------- Run | Yrd Mat Mat Maximum Alert Level . | . . . Low Security (%) 100 | 100 100 100 Level 1 . | . . . Level 2 . | . . . Level 3 . | . . . Level 4 . | . . . Level 5 . | . . . High Security . | . . . Max Security . | . . . Peak Influence 82 | 5 6 82 Initial . | . . . Average 12 | 1 . 14 Influence Increases 388 | 5 6 377 Destroy 0b10 Robot/C 220 | . . 220 Destroy 0b10 Robot/NC 20 | 5 . 15 Destroy Leader 94 | . . 94 Successful Hack 22 | . 6 16 Disable Machine 15 | . . 15 Destroy Structure 2 | . . 2 Lose Combat Pursuer 15 | . . 15 Influence Decreases 379 | 5 6 368 Time Decay 230 | 5 6 219 Lost Part 77 | . . 77 Purge Threat 72 | . . 72 Squads Dispatched 4 | . 2 2 Investigation 1 | . 1 . Extermination . | . . . Reinforcement 3 | . 1 2 Assault . | . . . Garrison . | . . . Intercept . | . . . Searches Triggered . | . . . Construction Impeded . | . . . Haulers Reinforced . | . . . Active Scanning Responses . | . . . Cargo Convoy Interrupts . | . . . Stealth | -11 -10 -9 --------- Run | Yrd Mat Mat Distress Signals 1 | . . 1 Communications Jammed . | . . . Distress Signals . | . . . Times Spotted 23 | . 2 21 Peak Tracking Total 6 | . 1 6 Tactical Retreats 1 | . . 1 Traps | -11 -10 -9 ------- Run | Yrd Mat Mat Traps Triggered 1 | . . 1 Indirectly . | . . . Trap Hack Attempts . | . . . Triggered . | . . . Disarmed . | . . . Reprogrammed . | . . . Reused . | . . . Traps Extracted . | . . . Installed . | . . . Triggered . | . . . Machines | -11 -10 -9 ---------- Run | Yrd Mat Mat Machines Disabled 1 | . . 1 Max in Single Turn 1 | . . 1 Machines Repaired . | . . . Machines Dismantled . | . . . Machines Sabotaged . | . . . Overloaded Fab Kills . | . . . Hacking | -11 -10 -9 --------- Run | Yrd Mat Mat Machines Accessed 8 | . 3 5 Terminals 7 | . 2 5 Fabricators . | . . . Repair Stations . | . . . Recycling Units 1 | . 1 . Scanalyzers . | . . . Garrison Access . | . . . Total Hacks 23 | . 6 17 Successful 10 | . 2 8 Failed 13 | . 4 9 Catastrophic 5 | . 2 3 Database Lockouts . | . . . Manual 8 | . 2 6 Terminals 22 | . 5 17 Fabricators . | . . . Repair Stations . | . . . Recycling Units 1 | . 1 . Scanalyzers . | . . . Garrison Access . | . . . Terminal Hacks 9 | . 1 8 Branch Access Points 1 | . . 1 Alert Level 1 | . . 1 Unreport Threat 1 | . . 1 Locate Traps 2 | . . 2 Dispatch Records 1 | . . 1 Zone Layout 3 | . 1 2 Fabricator Hacks . | . . . Repair Station Hacks . | . . . Recycling Unit Hacks 1 | . 1 . Retrieve Components 1 | . 1 . Scanalyzer . | . . . Garrison Access Hacks . | . . . Unauthorized Hacks . | . . . Terminals . | . . . Fabricators . | . . . Repair Stations . | . . . Recycling Units . | . . . Scanalyzers . | . . . Garrison Access . | . . . Data Cores Recovered . | . . . Used . | . . . Hacking Detections 7 | . 2 5 Full Trace Events 1 | . 1 . Feedback Events . | . . . Feedback Blocked . | . . . Robot Schematics Acquired . | . . . Robots Built . | . . . Authchips . | . . . Time . | . . . Total Robot Build Rating . | . . . Part Schematics Acquired . | . . . Parts Built . | . . . Authchips . | . . . Time . | . . . Total Part Build Rating . | . . . Parts Repaired . | . . . Time . | . . . Parts Recycled . | . . . Recycled Matter . | . . . Retrieved Matter . | . . . Retrieved Components 2 | . 2 . Parts Scanalyzed . | . . . Part Schematics Acquired . | . . . Parts Damaged . | . . . Bothacking | -11 -10 -9 ------------ Run | Yrd Mat Mat Used RIF Installer . | . . . Robots Hacked . | . . . Non-combat . | . . . Combat . | . . . Robot Hacks Applied . | . . . Relay Couplers Released . | . . . Fabnet Peak Effective % . | . . . Robots Rewired . | . . . Allies Hacked . | . . . Hacks Repelled . | . . . Allies | -11 -10 -9 -------- Run | Yrd Mat Mat Total Allies . | . . . Largest Group . | . . . Highest-Rated Group . | . . . Highest-Rated Ally . | . . . Total Orders . | . . . Ally Attacks . | . . . Total Damage . | . . . Kills . | . . . Allies Corrupted . | . . . Allies Melted . | . . . Intel | -11 -10 -9 ------- Run | Yrd Mat Mat Active Infowar (turns) 63 | . . 63 Sensors 63 | . . 63 Robot Analysis Total . | . . . Derelict Logs Recovered . | . . . Drone Launches . | . . . Drone Recoveries . | . . . Exploration | -11 -10 -9 ------------- Run | Yrd Mat Mat Turns Passed 1100 | 20 114 966 Spaces Moved 577 | 5 85 487 Core . | . . . Treads . | . . . Legs 577 | 5 85 487 Wheels . | . . . Hover . | . . . Flight . | . . . Fastest Speed 120 | 120 120 120 Average Speed 133 | 120 120 136 Slowest Speed 400 | 120 120 400 Overloaded Moves . | . . . Propulsion Burnouts . | . . . Robots Hopped . | . . . Potential Cave-ins . | . . . Cave-ins Triggered . | . . . Exploration Rate (%) 22 | 2 20 46 Regions Visited 2 Branch Regions . Pre-discovered Areas . | . . . Known Exits Taken . | . . . Unknown Exits Taken 2 | 1 1 . Scrap Searched . | . . . Spaces Dug . | . . . Terrain Destroyed 2 | . . 2 Melee . | . . . Projectile 2 | . . 2 AOE . | . . . Terrain Rammed . | . . . Walls Destroyed . | . . . Machines Disabled . | . . . Actions | -11 -10 -9 --------- Run | Yrd Mat Mat Total 753 | 9 95 649 Wait 14 | . . 14 Move 576 | 4 85 487 Hop . | . . . Pick Up 19 | . 4 15 Fast Attach 12 | . 2 10 Attach 7 | . . 7 Detach 3 | . . 3 Swap 7 | . . 7 Drop 14 | . 3 11 Fire 80 | 5 1 74 Melee 20 | . . 20 Ram . | . . . Kick 1 | . . 1 Crush . | . . . Escape Stasis . | . . . Rewire . | . . . Trap . | . . . Miscellaneous . | . . . Route ------- -11/Scrapyard -10/Materials -9/Materials (discovered 1 exit: Min) History --------- Turn | Location | Event 16 | -11/Scrapyard | Discovered new exit (range 2) 21 | -11/Scrapyard | Entered Materials 120 | -10/Materials | Discovered new exit (range 10) 135 | -10/Materials | Entered another Materials area 135 | -9/Materials | Evolved 2 slots: Propulsion x2 312 | -9/Materials | Build established: Mutant 413 | -9/Materials | Identified exit to Mines 1070 | -9/Materials | Core integrity fell below 50% 1092 | -9/Materials | Core integrity fell below 20% 1101 | -9/Materials | Destroyed by G-34 Mercenary with Small Laser Last Messages --------------- recycling unit. 01089_ Aluminum Leg destroyed. 01091_ K-01 Serf collects debris. 01092_ Acquired Imp. Aluminum Leg. 01093_ R-06 Scavenger inserts Wheel into recycling unit. 01093_ K-01 Serf collects debris. 01096_ R-06 Scavenger collects Katana. 01096_ R-06 Scavenger inserts Hammer into recycling unit. 01097_ Sneak attack on R-06 Scavenger. 01097_ Destroyed Lgt. Ion Engine. 01097_ R-06 Scavenger system corrupted by crushing effect. 01098_ R-06 Scavenger system terminally corrupted. 01098_ K-01 Serf collects debris. 01099_ R-06 Scavenger inserts Aluminum Leg into recycling unit. 01100_ Acquired 79 matter. Map ----- +----------------------------------------------------+ | ?????????????????????????????????????????????????? | | ?????????????????????????????????????????????????? | | ?????????????????????????????????????????????????? | | ?????????????????????????????????????????????????? | | ?????????????????????????????????????????????????? | | ?????????????????????????????????????????????????? | | ?????????????????????????????????????????????????? | | ?????????????????????????????????????????????????? | | ?????????????????????????????????????????????????? | | ?????????????????????????????????????????????????? | | ?????????????????????????????????????????????????? | | ?????????????????????????????????????????????????? | | ?????????????????????????????????????????????????? | | ?????????????????????????????????????????????????? | | ?????????????????????????????????????????????????? | | ?????????????????????????????????????????????????? | | ????????????? ##???????????????????????????????? | | ????????????? #######??????????????????????? | | ?????????????? ??????????????????????? | | ??????????????? ??????????????????????? | | ???????????????"""w "" ??????????????????????? | | ???????????????""" Y" ##########+######+###??? | | ???????????"" """ r"" ## # #??? | | ?????????? ## # #??? | | ?????????? k k #? " " ?# """ #??? | | ?????????? @! #? "Y" ?# """ #??? | | ???????????????# ^ ##### #??"""??? """ #??? | | ?????????????????????????## g ##?? ????? #??? | | ??????????????????????????# g #####+########+#???? | | ??????????????????????????# #???? | | ???????????????????????#### ######## #???? | | ?????????>?????????????/ #??????# #???? | | ??????????????????? "" #####+###+######## #???? | | ?????????????????? ???# ## #???? | | ???????????????????????# ##! ##### | | ???????????????????????# ## | | ???????????????????????# ## ########## | | ???????????????????????# ## ! #????????? | | ???????????????????????# ##!! #????????? | | ???????????????????????# ######????????? | | ???????????????????????#############?????????????? | | | | | | | | | | | | | | | | | | | +----------------------------------------------------+ Best States ------------- Heat Dissipation 28 Energy Generation 14 Energy Capacity 265 Matter Stores 300 Matter Capacity 300 Sight Range 16 Robot Scan Range 14 Terrain Scan Density 10 Armor Coverage 150 Evasion (%) 55 Item Schematics ----------------- None Robot Schematics ------------------ None Fabricated ------------ Nothing Repaired ---------- Nothing Alien Tech Used ----------------- None Achievements -------------- None Challenges ------------ None Game ------ Seed SalvageGravitonNanoactuators Manual? 0 Play Time 00:14:10 Cumulative 114.1 hours Start 2025.08.24 @ 15:51:12 End 2025.08.24 @ 16:02:30 Sessions 1 Manual Loads 0 Difficulty Rogue Special Mode None Game No. 147 Rogue 60 Adventurer 59 Explorer 28 Win Type - Total 15 Types 13/0/2/0/0/0/0/0/0/0 Lore% 36 Gallery% 59 Achievement% 49 Wizard Run 0 Options --------- Layout 2 ASCII 0 Keyboard 1 Movement Arrows Keybinds 1 Fullscreen 2 Font 32/SmallcapsGlow Map View 50x44 Zoom Use 0% Tactical HUD 1 Map Filters NONE Filters NONE Steam 1 RUN: 8ae8184d-0f86-4e4a-9749-d8f30e0450ce